bitfinex-derivatives/quotes_ETHF0:USTF0_20250130
["timestamp","ask_amount","ask_price","bid_price","bid_amount"]
[1738247497510,6.90133681,3256.6,3256.0,0.61432]
[1738247497712,6.90133681,3256.6,3255.9,0.00460892]
[1738247497909,0.61427,3256.4,3256.0,0.61433]
[1738247498120,6.90133681,3256.6,3255.9,0.00460892]
[1738247498716,3.82214,3256.0,3255.9,0.00460892]
[1738247499015,0.6144,3255.7,3254.9,3.2078]
[1738247499219,1.076,3255.9,3254.9,3.2078]
[1738247499420,3.2078,3255.6,3254.9,3.2078]
[1738247499622,3.2078,3255.6,3255.3,0.61445]
[1738247499813,3.2078,3255.6,3255.4,0.61444]
[1738247500017,3.2078,3255.6,3254.9,3.2078]
[1738247500215,3.2078,3255.6,3255.1,0.00460892]
[1738247500411,1.3575,3255.9,3255.1,0.00460892]
[1738247500616,6.90133681,3256.1,3255.2,1.53623]
[1738247500922,6.90133681,3256.1,3255.9,0.61435]
[1738247501113,3.2078,3256.1,3256.0,0.61434]
[1738247501311,1.3768,3256.3,3255.7,3.2078]
[1738247501524,1.3768,3256.3,3255.4,1.3611]
[1738247501716,3.04775,3256.5,3255.8,0.61438]
[1738247501917,2.4335,3256.5,3256.1,0.61431]
[1738247502122,0.61427,3256.4,3256.1,0.61431]
[1738247502317,1.3575,3256.5,3255.7,3.2078]
[1738247502523,1.3575,3256.5,3256.3,0.61427]
[1738247503125,1.3575,3256.5,3255.7,3.2078]
[1738247503334,0.61428,3256.3,3255.8,0.61438]
[1738247503626,1.3575,3256.5,3255.7,3.2078]
[1738247503921,1.3575,3256.5,3256.1,0.61431]
[1738247504128,1.3575,3256.5,3256.3,0.61427]
[1738247504319,3.2078,3256.7,3255.8,1.53591]
[1738247504519,3.2078,3256.7,3255.7,3.2078]
[1738247504520,3.2078,3256.7,3256.4,0.61425]
[1738247504814,3.2078,3256.7,3255.9,1.5359]
[1738247505020,3.2078,3256.7,3256.5,0.61423]
[1738247505325,3.2078,3256.7,3255.4,1.3611]
[1738247505326,0.00460892,3257.1,3256.6,3.2078]
[1738247505524,0.61874892,3257.1,3256.8,0.61419]
[1738247505717,0.61415,3257.0,3256.3,2.6549]
[1738247505923,0.61415,3257.0,3256.6,0.61421]
[1738247506225,0.61874892,3257.1,3256.3,2.6549]
[1738247506614,0.61874892,3257.1,3256.7,0.61419]
[1738247506819,0.61874892,3257.1,3256.8,0.61419]
[1738247507023,0.61874892,3257.1,3256.7,0.6142]
[1738247507517,0.61874892,3257.1,3256.3,2.6549]
[1738247507518,3.69353681,3257.0,3256.3,2.6549]
[1738247507724,3.2078,3256.8,3255.9,3.2078]
[1738247507925,3.69353681,3257.0,3256.4,3.2078]
[1738247508128,0.00460892,3257.1,3257.0,0.61415]
[1738247509828,0.00460892,3257.1,3256.4,1.53566]
[1738247509829,1.53538,3257.0,3255.7,3.2078]
[1738247510022,3.2078,3256.6,3255.9,1.2868]
[1738247510326,3.2078,3256.2,3255.4,1.3039]
[1738247510620,3.2078,3256.2,3255.4,3.20515]
[1738247510826,1.3631,3256.1,3255.4,3.20515]
[1738247511026,3.2078,3255.6,3255.4,1.2868]
[1738247511230,0.61449,3255.2,3254.9,1.89173]
[1738247511422,3.82229,3255.2,3254.9,1.2772]
[1738247511822,3.82229,3255.2,3254.5,1.3346]
[1738247512022,3.82229,3255.2,3254.4,1.2772]
[1738247512221,3.82229,3255.2,3254.4,1.89183]
[1738247512429,3.82229,3255.2,3254.4,1.2772]
[1738247512830,3.82229,3255.2,3254.6,0.6146]
[1738247513329,3.82229,3255.2,3254.4,1.89183]
[1738247513525,3.82229,3255.2,3254.4,1.2772]
[1738247513730,8.2078,3255.2,3253.9,3.2078]
[1738247513929,0.61465,3254.4,3253.9,0.61472]
[1738247514230,3.2078,3254.5,3253.7,1.2991]
[1738247514434,0.61464,3254.4,3254.0,0.61471]
[1738247514729,3.2078,3254.5,3253.7,1.2991]
[1738247514930,3.82702892,3254.5,3254.1,0.61468]
[1738247515325,0.00460892,3254.5,3254.4,3.2078]
[1738247515519,3.2078,3255.3,3254.4,3.2078]
[1738247515930,3.2078,3255.3,3254.5,1.2991]
[1738247516430,3.2078,3255.3,3255.0,0.61452]
[1738247516726,3.2078,3255.3,3254.8,0.00460892]
[1738247516931,3.2078,3255.3,3254.9,0.61453]
[1738247517132,3.2078,3255.3,3255.0,0.61452]
[1738247517631,3.2078,3255.3,3255.1,0.6145]
[1738247518331,3.2078,3255.3,3254.8,0.00460892]
[1738247518332,3.2078,3255.3,3255.0,0.61452]
[1738247519827,3.2078,3255.3,3254.8,0.00460892]
[1738247520032,0.61454,3255.0,3254.8,0.00460892]
[1738247520227,0.61451,3255.1,3254.8,0.00460892]
[1738247520531,0.61453,3255.0,3254.8,0.00460892]
[1738247520732,0.61452,3255.1,3254.8,0.00460892]
[1738247521229,3.2078,3255.3,3255.2,0.61449]
[1738247522033,3.2078,3255.3,3254.9,3.2078]
[1738247522231,3.2078,3255.3,3255.2,0.61449]
[1738247522534,0.00460892,3255.5,3255.4,0.61445]
[1738247522737,0.00460892,3255.5,3255.4,3.82225]
[1738247523424,0.00460892,3255.5,3255.4,3.2078]
[1738247523625,0.61904892,3255.5,3255.1,0.61449]
[1738247523834,1.076,3255.4,3254.8,0.00460892]
[1738247524032,3.82235,3254.9,3254.8,0.00460892]
[1738247524332,3.2078,3254.9,3254.8,0.61916892]
[1738247524542,3.69353681,3255.1,3254.8,0.61916892]
[1738247524733,3.82235,3254.9,3254.8,0.00460892]
[1738247524934,3.2078,3254.9,3254.8,0.61916892]
[1738247525128,3.69353681,3255.1,3254.8,0.00460892]
[1738247525328,3.2078,3255.3,3255.1,0.61451]
[1738247525536,2.402,3255.4,3254.8,0.61915892]
[1738247525537,0.6145,3255.2,3254.8,0.61915892]
[1738247525737,0.61455,3254.9,3254.8,0.00460892]
[1738247525940,3.69353681,3255.1,3254.8,0.00460892]
[1738247526339,4.30805681,3255.1,3254.8,0.00460892]
[1738247526636,3.2078,3255.2,3254.8,0.00460892]
[1738247526840,1.326,3255.4,3255.1,0.61451]
[1738247527439,1.326,3255.4,3254.8,3.21240892]
[1738247527440,0.61445,3255.4,3254.9,1.3978]
[1738247527837,0.61904892,3255.5,3255.0,0.61453]
[1738247528033,0.61904892,3255.5,3255.2,0.61448]
[1738247528232,0.00460892,3255.5,3254.9,1.3978]
[1738247528437,0.61905892,3255.5,3255.1,0.6145]
[1738247528649,0.00460892,3255.5,3254.9,1.3978]
[1738247528937,0.00460892,3255.5,3255.2,3.2078]
[1738247529148,0.00460892,3255.5,3255.4,0.61445]
[1738247529540,0.00460892,3255.5,3255.2,3.2078]
[1738247529748,0.00460892,3255.5,3255.4,0.61445]
[1738247530047,3.82198,3256.9,3256.4,0.61425]
[1738247530253,3.82198,3256.9,3255.6,1.53601]
[1738247530254,3.2078,3256.9,3255.9,3.2078]
[1738247530439,3.2078,3256.9,3256.5,0.61423]
[1738247530640,3.82198,3256.9,3256.4,0.61425]
[1738247530845,3.69353681,3256.6,3255.9,3.2078]
[1738247531045,4.30776681,3256.6,3256.1,0.61431]
[1738247531247,3.2078,3256.7,3255.9,3.2078]
[1738247531437,3.2078,3256.7,3256.6,0.61422]
[1738247531744,3.2078,3256.7,3256.0,1.53585]
[1738247531940,3.2078,3256.7,3255.7,4.16318]
[1738247531941,3.69353681,3256.6,3255.7,2.6272]
[1738247532246,3.69353681,3256.0,3255.8,0.61436]
[1738247532444,3.69353681,3256.0,3255.7,1.2805]
[1738247532638,3.69353681,3256.0,3255.4,3.2078]
[1738247532944,3.2078,3256.2,3255.4,3.2078]
[1738247533139,3.2078,3256.2,3256.1,0.61432]
[1738247533444,3.2078,3256.2,3255.5,2.87439]
[1738247533643,3.2078,3256.2,3256.0,0.61433]
[1738247534040,3.2078,3256.2,3256.1,0.61432]
[1738247534242,3.2078,3256.2,3256.0,0.61434]
[1738247534535,3.2078,3256.2,3256.0,0.61433]
[1738247534740,3.2078,3256.2,3255.5,1.3383]
[1738247534943,3.2078,3256.2,3256.1,0.61432]
[1738247535138,3.2078,3256.2,3255.5,1.3383]
[1738247535342,0.61437,3255.9,3255.5,0.61442]
[1738247535747,3.2078,3255.8,3255.2,1.3766]
[1738247535946,3.2078,3255.8,3255.0,3.2078]
[1738247536144,3.2078,3256.4,3255.4,3.2078]
[1738247536346,1.3243,3256.6,3256.5,0.61424]
[1738247536650,4.31230573,3257.0,3256.9,0.61417]
[1738247536651,3.69814573,3257.0,3256.9,0.61417]
[1738247536851,3.69814573,3257.0,3256.2,3.2078]
[1738247536852,3.69814573,3257.0,3256.8,0.61418]
[1738247537244,3.69814573,3257.0,3256.6,0.00460892]
[1738247537944,3.69814573,3257.0,3256.9,0.61417]
[1738247538238,0.00460892,3257.0,3256.9,0.61417]
[1738247538643,0.00460892,3257.0,3256.6,0.00460892]
[1738247539153,0.00460892,3257.0,3256.9,0.61417]
[1738247539553,6.90133681,3258.0,3256.9,3.2078]
[1738247539751,0.61403,3257.7,3257.3,0.61409]
[1738247539952,6.90133681,3258.0,3257.0,5.9025]
[1738247540157,0.61412,3257.2,3256.8,0.61418]
[1738247540349,6.90133681,3257.5,3256.6,0.00460892]
[1738247540546,0.61409,3257.3,3256.9,0.61416]
[1738247540746,3.2078,3257.0,3256.6,0.00460892]
[1738247541051,6.90133681,3257.0,3256.6,0.00460892]
[1738247541251,0.6142,3256.8,3256.6,0.00460892]
[1738247541460,6.90133681,3257.0,3256.7,0.6142]
[1738247541651,6.90133681,3257.0,3256.6,0.61881892]
[1738247541652,4.30769681,3257.0,3256.6,0.61881892]
[1738247541952,3.69353681,3257.0,3256.6,0.00460892]
[1738247542456,3.2078,3256.8,3256.6,0.00460892]
[1738247542650,3.2078,3257.2,3256.6,0.00460892]
[1738247543158,3.2078,3257.2,3257.0,0.61415]
[1738247543347,1.2758,3257.3,3256.6,0.00460892]
[1738247543542,1.8899,3257.3,3256.9,0.61415]
[1738247543746,3.21240892,3257.4,3256.6,3.21240892]
[1738247543947,3.21240892,3257.4,3257.3,0.61409]
[1738247545154,3.21240892,3257.4,3257.0,4.6104]
[1738247545456,3.21240892,3257.4,3256.6,3.82662892]
[1738247545752,3.21240892,3257.4,3256.6,0.00460892]
[1738247545950,6.90133681,3257.0,3256.6,0.00460892]
[1738247546160,0.61421,3256.7,3256.6,0.00460892]
[1738247546344,0.61421,3256.7,3256.6,0.00290083]
[1738247546956,5.0,3256.7,3255.7,1.2798]
[1738247547151,3.2078,3256.0,3255.8,0.61436]
[1738247547351,3.2078,3256.0,3255.5,1.3074]
[1738247547548,3.2078,3256.0,3255.9,0.61436]
[1738247547953,3.2078,3256.4,3256.3,0.61428]
[1738247549761,3.2078,3256.4,3256.0,3.2078]
[1738247549762,3.2078,3256.4,3256.1,0.61432]
[1738247549949,3.2078,3256.4,3256.0,3.2078]
[1738247549950,3.2078,3256.4,3256.3,0.61428]
[1738247551153,3.82207,3256.4,3256.1,0.61431]
[1738247551346,3.2078,3256.4,3256.1,0.61431]
[1738247551548,3.2078,3256.4,3256.3,0.61428]
[1738247551747,3.2078,3256.8,3256.7,0.61421]
[1738247552754,3.2078,3257.3,3256.6,4.74337]
[1738247552955,0.00460892,3257.4,3256.7,1.53552]
[1738247553154,0.00460892,3257.4,3257.3,0.61409]
[1738247554164,0.00460892,3257.4,3256.7,1.53552]
[1738247554568,0.00460892,3257.4,3256.6,3.2078]
[1738247554861,0.00460892,3257.4,3257.1,0.61411]
[1738247555067,0.61868892,3257.4,3257.1,0.61412]
[1738247555566,0.00460892,3257.4,3257.0,3.2078]
[1738247555758,0.00460892,3257.4,3257.1,0.61413]
[1738247555955,0.00460892,3257.4,3257.1,0.61411]
[1738247556359,0.00460892,3257.4,3256.5,1.337]
[1738247556556,0.00460892,3257.4,3257.2,0.6141]
[1738247557867,3.2078,3257.3,3256.5,1.337]
[1738247558071,3.69353681,3257.1,3256.5,1.337]
[1738247558268,3.69353681,3257.1,3257.0,0.61415]
[1738247558570,1.33900892,3257.4,3256.7,1.53552]
[1738247558768,1.33900892,3257.4,3256.5,1.337]
[1738247558974,1.33900892,3257.4,3257.3,0.61409]
[1738247558975,0.00460892,3257.4,3257.3,0.61409]
[1738247559171,0.61868892,3257.4,3257.0,0.61413]
[1738247559370,0.61868892,3257.4,3257.1,0.61412]
[1738247559970,0.00460892,3257.4,3257.2,0.61411]
[1738247560472,0.00460892,3257.4,3257.3,0.61409]
[1738247562272,0.00460892,3257.4,3257.2,1.3422]
[1738247562474,3.2078,3257.3,3256.6,1.3422]
[1738247562979,3.2078,3256.8,3256.4,3.2078]
[1738247563171,0.61426,3256.5,3255.7,4.0929]
[1738247563368,3.69353681,3256.6,3256.2,0.61429]
[1738247563562,3.2078,3256.4,3255.7,5.62885]
[1738247563763,3.2078,3256.4,3255.7,4.0929]
[1738247563976,3.2078,3256.4,3256.3,0.61428]
[1738247565479,6.90133681,3257.1,3256.3,3.2078]
[1738247565681,6.90133681,3257.1,3255.7,4.0929]
[1738247565682,0.00460892,3257.4,3257.3,0.61409]
[1738247569576,0.61412,3257.2,3256.9,1.91846]
[1738247569776,3.69353681,3257.1,3256.7,3.2078]
[1738247570175,4.2828,3257.0,3256.1,3.2078]
[1738247570476,3.2078,3256.2,3255.9,1.3572]
[1738247570677,3.2078,3256.2,3255.7,2.5754]
[1738247570878,3.2078,3256.2,3256.0,0.61434]
[1738247571269,3.2078,3256.2,3256.0,0.61432]
[1738247571469,3.2078,3256.2,3255.7,2.35135974]
[1738247571674,0.61432,3256.1,3255.8,0.61437]
[1738247571881,3.2078,3256.2,3255.9,0.61435]
[1738247572576,3.2078,3256.2,3255.7,2.35135974]
[1738247572881,3.2078,3256.2,3255.7,1.2647]
[1738247573073,0.61435,3256.0,3255.7,1.2647]
[1738247573274,0.61433,3256.1,3255.7,1.2647]
[1738247573485,0.61433,3256.1,3255.7,1.87908]
[1738247573681,3.2078,3256.2,3255.7,1.2647]
[1738247573878,3.2078,3256.2,3255.6,0.00460892]
[1738247574087,2.7292,3256.3,3255.6,0.00460892]
[1738247574088,3.82219,3255.8,3255.6,0.00460892]
[1738247574384,0.61439,3255.7,3255.6,0.00460892]
[1738247576481,0.61439,3255.7,3254.7,4.5695]
[1738247576482,3.2078,3255.8,3254.7,4.5695]
[1738247576685,3.82225,3255.4,3255.0,0.61452]
[1738247576986,3.82225,3255.4,3254.7,4.5695]
[1738247576987,3.2078,3255.4,3254.7,4.5695]
[1738247577375,3.2078,3255.4,3255.0,0.61453]
[1738247577576,3.82686892,3255.4,3255.1,0.61451]
[1738247577779,3.21240892,3255.4,3255.3,0.61447]
[1738247578474,3.21240892,3255.4,3255.2,0.61448]
[1738247578884,3.21240892,3255.4,3254.7,6.11056892]
[1738247579084,0.00460892,3255.4,3255.3,0.61447]
[1738247580577,0.61448,3255.3,3254.9,0.61454]
[1738247580882,0.00460892,3255.4,3254.7,4.57410892]
[1738247581186,0.00460892,3255.4,3255.2,0.61449]
[1738247581488,0.00460892,3255.4,3255.0,0.61452]
[1738247581885,0.00460892,3255.4,3254.7,4.57410892]
[1738247581886,0.00460892,3255.4,3254.8,1.53642]
[1738247582081,0.00460892,3255.4,3254.7,4.57410892]
[1738247582281,0.00460892,3255.4,3255.2,0.61448]
[1738247582479,0.00460892,3255.4,3254.8,2.15098]
[1738247582785,0.00460892,3255.4,3254.7,4.57410892]
[1738247582987,0.00460892,3255.4,3255.1,0.6145]
[1738247583186,0.00460892,3255.4,3254.7,4.57410892]
[1738247583482,6.40008468,3255.1,3254.7,1.36630892]
[1738247583686,6.40008468,3255.1,3254.7,0.00460892]
[1738247583886,0.61455,3254.9,3254.1,0.61469]
[1738247584087,3.19228468,3254.3,3254.2,0.61468]
[1738247584391,3.19228468,3254.3,3254.1,0.61469]
[1738247584580,3.19228468,3254.3,3253.7,2.6656]
[1738247584581,3.2078,3254.2,3253.4,0.61482]
[1738247584886,3.2078,3253.7,3253.6,0.61479]
[1738247585086,3.19228468,3254.0,3253.1,1.53722]
[1738247585285,3.19228468,3254.0,3253.9,0.61473]
[1738247585481,3.21240892,3254.1,3253.3,1.53713]
[1738247585786,0.00460892,3254.1,3254.0,0.61472]
[1738247585985,3.2078,3254.5,3254.4,0.61464]
[1738247586178,3.2078,3254.5,3254.2,0.61466]
[1738247586383,3.19228468,3254.4,3253.8,2.6339]
[1738247586582,3.19228468,3254.4,3254.3,0.61466]
[1738247586784,3.2078,3254.5,3254.4,0.61464]
[1738247586983,3.19228468,3254.8,3254.7,0.61458]
[1738247587182,3.19228468,3254.8,3254.1,4.74455]
[1738247587183,3.1968936,3254.8,3254.1,3.21240892]
[1738247587381,3.19228468,3254.4,3254.1,0.00460892]
[1738247587891,3.2078,3254.3,3254.1,0.61929892]
[1738247588090,3.2078,3254.3,3254.1,0.00460892]
[1738247589386,3.2078,3254.7,3254.1,0.00460892]
[1738247589582,3.2078,3254.7,3254.6,0.6146]
[1738247589779,3.2078,3254.7,3254.2,3.2078]
[1738247590084,3.2078,3254.7,3254.6,0.6146]
[1738247590486,3.2078,3254.7,3254.2,3.2078]
[1738247590688,3.2078,3254.7,3254.6,0.6146]
[1738247591596,3.1968936,3254.8,3254.3,1.53665]
[1738247591895,8.92e-06,3254.8,3254.7,0.61458]
[1738247592091,3.19228468,3256.0,3254.7,1.2627]
[1738247592391,6.40008468,3256.4,3255.6,3.2078]
[1738247592695,3.19228468,3256.0,3255.9,0.61435]
[1738247593791,6.40008468,3256.0,3255.7,1.2627]
[1738247593992,0.61437,3255.9,3255.7,1.2627]
[1738247594188,6.40008468,3256.0,3255.6,0.00460892]
[1738247594392,6.40008468,3256.0,3255.7,0.61439]
[1738247594588,6.40008468,3256.0,3255.6,0.00460892]
[1738247594796,3.19228468,3256.0,3255.9,0.61436]
[1738247595898,0.00460892,3256.3,3256.2,0.6143]
[1738247596287,0.00460892,3256.3,3255.7,1.3614]
[1738247596492,3.19228468,3256.0,3255.7,0.61439]
[1738247596695,3.19228468,3256.0,3255.6,3.21240892]
[1738247596902,3.19228468,3256.0,3255.9,0.61436]
[1738247597196,3.19228468,3256.0,3255.8,0.61436]
[1738247597385,3.19228468,3256.0,3255.6,3.21240892]
[1738247597591,3.2078,3255.8,3255.6,0.00460892]
[1738247597996,1.89399,3255.7,3255.6,0.00295474]
[1738247598195,1.2796,3255.7,3255.6,0.61736474]
[1738247598494,3.2078,3255.8,3255.7,0.61439]
[1738247598693,3.2078,3255.8,3255.7,1.87049]
[1738247598890,6.40008468,3256.4,3255.7,2.5332]
[1738247599096,6.40008468,3256.4,3256.2,0.6143]
[1738247599306,6.40008468,3256.4,3255.7,3.7898]
[1738247599492,3.19228468,3256.0,3255.7,1.2561]
[1738247599895,3.19228468,3256.0,3255.6,3.21075474]
[1738247600096,3.80663468,3256.0,3255.6,3.82515474]
[1738247600898,7.01443468,3256.0,3255.6,0.61735474]
[1738247601091,6.40008468,3256.0,3255.6,0.00295474]
[1738247601489,7.01443468,3256.0,3255.6,0.61735474]
[1738247601693,6.40008468,3256.0,3255.6,0.00295474]
[1738247601898,7.66948468,3256.4,3256.2,0.6143]
[1738247602102,6.40008468,3256.4,3256.0,0.61433]
[1738247602290,6.40008468,3256.4,3255.6,0.00295474]
[1738247602494,3.19228468,3256.0,3255.6,0.00295474]
[1738247602695,3.19228468,3256.0,3255.9,0.61436]
[1738247604895,6.40008468,3256.4,3256.2,0.6143]
[1738247607402,0.6143,3256.2,3255.9,4.47605]
[1738247607605,6.40008468,3256.4,3256.1,0.61432]
[1738247607606,7.01435468,3256.4,3256.1,0.61432]
[1738247607805,6.40008468,3256.4,3256.2,0.6143]
[1738247611406,6.40008468,3256.4,3255.9,0.61435]
[1738247611601,3.19228468,3256.0,3255.9,0.61435]
[1738247611802,3.19228468,3256.0,3255.8,0.61436]
[1738247612013,3.19228468,3256.0,3255.9,0.61436]
[1738247613611,3.19228468,3256.0,3255.6,0.00295474]
[1738247613813,0.61437,3255.9,3255.6,0.61736474]
[1738247614114,1.2463,3255.9,3255.7,0.61439]
[1738247614318,1.2463,3255.9,3255.6,0.00295474]
[1738247614518,6.40008468,3256.0,3255.6,0.00295474]
[1738247614711,3.2078,3256.0,3255.9,0.61436]
[1738247614916,0.00460892,3256.3,3255.9,3.82216]
[1738247615228,3.19228468,3256.0,3255.9,3.82216]
[1738247615414,3.19228468,3256.0,3255.9,3.2078]
[1738247615725,0.61438,3255.8,3255.6,0.00295474]
[1738247616523,1.2463,3255.9,3255.6,0.00295474]
[1738247616726,0.61439,3255.7,3255.6,0.00295474]
[1738247617224,4.4541,3255.9,3255.6,0.00295474]
[1738247617425,4.4541,3255.9,3255.8,0.61438]
[1738247617426,1.2463,3255.9,3255.8,0.61438]
[1738247617827,1.2463,3255.9,3255.6,0.00295474]
[1738247618028,0.61439,3255.7,3255.6,0.00295474]
[1738247618224,0.61439,3255.8,3255.6,0.00295474]
[1738247619027,4.4541,3255.9,3255.8,0.61438]
[1738247619226,4.4541,3255.9,3255.7,0.61438]
[1738247619631,4.4541,3255.9,3255.0,0.61451]
[1738247619825,6.40008468,3255.3,3254.5,2.5439]
[1738247620022,3.19228468,3254.7,3254.2,1.2356]
[1738247620426,3.80687468,3254.7,3254.4,0.61464]
[1738247620931,0.61461,3254.6,3254.2,1.24020892]
[1738247621135,3.19228468,3254.3,3254.2,0.00460892]
[1738247622232,3.2078,3254.5,3254.2,0.00460892]
[1738247622436,0.00460892,3254.6,3254.2,0.00460892]
[1738247622737,3.19228468,3255.1,3255.0,0.61453]
[1738247623337,3.19228468,3255.1,3254.6,2.5997]
[1738247623739,3.19228468,3255.1,3255.0,0.61453]
[1738247624532,0.00460892,3255.2,3255.1,0.61451]
[1738247629838,0.00460892,3255.2,3254.6,5.8075]
[1738247630040,0.00460892,3255.2,3255.1,0.61451]
[1738247631040,0.00460892,3255.2,3255.1,3.82231]
[1738247631250,3.19228468,3256.8,3255.3,3.19228468]
[1738247631439,3.19228468,3257.2,3256.6,3.2078]
[1738247631634,3.19228468,3257.2,3256.9,0.61416]
[1738247631841,3.19228468,3257.2,3256.6,3.2078]
[1738247632039,3.19228468,3257.2,3256.7,1.3237]
[1738247632343,3.1968936,3257.2,3257.1,0.61413]
[1738247632640,3.1968936,3257.2,3257.0,0.61414]
[1738247632846,3.1968936,3257.2,3256.7,1.3237]
[1738247633038,3.1968936,3257.2,3257.0,0.39396041]
[1738247633239,3.1968936,3257.2,3256.7,1.3237]
[1738247633542,3.80647468,3256.8,3256.6,0.00460892]
[1738247633747,0.61421,3256.7,3256.6,0.00460892]
[1738247634249,0.61421,3256.7,3255.5,4.4487]
[1738247634250,5.0,3256.7,3255.0,4.5161]
[1738247634545,3.19228468,3255.3,3255.2,0.61449]
[1738247634849,4.2828,3255.8,3255.2,0.61449]
[1738247635042,3.19228468,3255.7,3255.6,0.61441]
[1738247635647,3.19228468,3255.7,3255.3,0.00460892]
[1738247635847,3.19228468,3255.7,3255.3,0.61906892]
[1738247636241,3.19228468,3255.7,3255.3,0.00460892]
[1738247636441,0.61441,3255.6,3255.3,0.00460892]
[1738247636642,0.61442,3255.6,3255.3,0.00460892]
[1738247636846,3.19228468,3255.7,3255.3,0.61906892]
[1738247637052,3.19228468,3255.7,3255.4,0.61445]
[1738247637939,3.80667468,3255.7,3255.3,0.61907892]
[1738247638347,3.19228468,3255.7,3255.3,0.61907892]
[1738247638650,3.19228468,3255.7,3255.4,0.61445]
[1738247638946,3.19228468,3255.7,3255.5,0.61442]
[1738247639150,3.19228468,3255.7,3255.6,0.61441]
[1738247639342,3.2078,3255.8,3255.3,0.00460892]
[1738247639648,4.26728468,3256.1,3255.4,3.2078]
[1738247639843,3.19228468,3255.7,3255.4,0.61444]
[1738247640142,3.19228468,3255.7,3255.5,0.61443]
[1738247640343,3.19228468,3255.7,3255.4,0.61444]
[1738247640552,3.80669468,3255.7,3255.3,0.00460892]
[1738247640746,3.82225,3255.4,3255.3,0.00460892]
[1738247640940,3.2078,3255.4,3255.3,0.00460892]
[1738247641239,3.2078,3255.4,3255.3,0.00298118]
[1738247641637,3.82225,3255.4,3255.3,0.00298118]
[1738247642639,3.82225,3255.4,3255.0,0.61452]
[1738247642640,8.2078,3255.4,3254.2,3.2078]
[1738247642839,3.19228468,3254.5,3254.4,0.61463]
[1738247643342,6.40008468,3254.5,3254.3,0.61465]
[1738247643545,6.40008468,3254.5,3254.1,0.61469]
[1738247643737,6.40008468,3254.5,3254.3,0.61466]
[1738247643943,6.40008468,3254.5,3254.0,0.00460892]
[1738247644147,6.40008468,3254.5,3254.2,0.61468]
[1738247644646,6.40008468,3254.5,3254.3,0.61466]
[1738247644843,0.61467,3254.3,3254.0,0.00460892]
[1738247645043,6.40008468,3254.5,3254.0,0.00460892]
[1738247645044,3.19228468,3254.1,3254.0,0.00460892]
[1738247645652,2.69228468,3254.1,3254.0,0.00460892]
[1738247646341,5.90008468,3254.1,3254.0,0.00460892]
[1738247646539,6.51478468,3254.1,3254.0,0.00460892]
[1738247646740,3.2078,3254.1,3254.0,0.00460892]
[1738247646943,3.2078,3254.1,3254.0,0.61932892]
[1738247647346,3.2078,3254.1,3254.0,0.00460892]
[1738247648257,3.2078,3254.1,3254.0,0.61932892]
[1738247648447,3.2078,3254.1,3254.0,0.00460892]
[1738247648646,3.2078,3254.1,3254.0,0.61932892]
[1738247649053,3.19228468,3254.4,3254.3,0.61466]
[1738247649545,3.19228468,3254.4,3254.1,0.61469]
[1738247649746,3.19228468,3254.4,3254.0,0.61930892]
[1738247649949,3.19228468,3254.4,3254.2,0.61468]
[1738247650652,3.19228468,3254.4,3254.1,0.61469]
[1738247651451,3.82248,3254.2,3254.0,0.00460892]
[1738247651656,0.6147,3254.1,3254.0,0.00460892]
[1738247652455,1.5368,3254.0,3252.6,3.2078]
[1738247652642,1.5368,3254.0,3252.9,0.61491]
[1738247652643,3.19228468,3253.0,3252.9,0.61491]
[1738247652845,6.40008468,3253.3,3252.6,3.2078]
[1738247654558,3.19228468,3252.9,3252.6,3.2078]
[1738247654757,3.19228468,3252.9,3252.1,1.3486]
[1738247654957,6.40008468,3253.3,3252.4,3.2078]
[1738247655254,0.00460892,3252.8,3252.5,1.3156]
[1738247659264,3.2078,3253.3,3252.5,1.3156]
[1738247660359,0.00460892,3253.2,3252.8,3.2078]
[1738247660758,0.00460892,3253.2,3252.9,1.2538]
[1738247661753,0.00460892,3253.2,3252.8,3.2078]
[1738247661959,3.19228468,3252.9,3252.6,0.00460892]
[1738247665959,6.40008468,3252.9,3252.6,0.00460892]
[1738247666165,3.19228468,3252.2,3251.6,1.2323]
[1738247666466,3.2078,3252.5,3251.9,3.2078]
[1738247666668,3.2078,3252.5,3252.0,1.3135]
[1738247667364,7.47508468,3253.0,3252.0,1.3135]
[1738247667567,7.47508468,3253.0,3252.1,1.3005]
[1738247667767,3.19228468,3252.6,3252.1,1.3005]
[1738247670462,6.40008468,3252.6,3252.0,1.3135]
[1738247670664,3.19228468,3252.2,3252.0,1.3135]
[1738247671059,6.40008468,3252.6,3252.0,1.3135]
[1738247671766,3.19228468,3252.2,3252.0,1.3135]
[1738247672069,3.19228468,3252.2,3251.9,3.2078]
[1738247673673,3.19228468,3252.2,3251.6,1.2323]
[1738247674368,6.40008468,3252.2,3251.6,1.2323]
[1738247674570,3.19228468,3251.8,3251.5,1.3469]
[1738247675170,4.2838,3251.7,3250.9,3.2078]
[1738247675360,3.19228468,3251.1,3250.5,3.2078]
[1738247675567,3.19228468,3251.1,3250.1,5.742]
[1738247675873,3.19228468,3250.7,3250.1,5.742]
[1738247677369,3.19228468,3250.7,3250.1,2.5342]
[1738247677670,3.19228468,3251.1,3250.1,5.742]
[1738247677875,3.19228468,3251.2,3250.5,3.2078]
[1738247678276,3.19228468,3251.2,3250.6,1.3467]
[1738247678673,3.19228468,3250.8,3250.5,3.2078]
[1738247678869,3.19228468,3250.8,3250.1,2.5342]
[1738247679070,3.19228468,3250.4,3250.1,2.5342]
[1738247679271,3.19228468,3250.4,3249.9,4.5545]
[1738247679675,3.19228468,3250.4,3249.9,1.3467]
[1738247680477,3.19228468,3250.4,3250.0,2.545]
[1738247681378,3.19228468,3250.4,3249.8,3.2078]
[1738247682273,3.19228468,3250.0,3249.4,3.2078]
[1738247685975,3.19228468,3250.0,3249.1,3.9141]
[1738247686681,0.00460892,3249.9,3249.1,3.9141]
[1738247688272,0.00460892,3249.9,3249.0,3.2078]
[1738247688273,3.19228468,3249.6,3249.0,3.2078]
[1738247688481,0.00460892,3249.9,3248.6,3.2078]
[1738247688482,3.19228468,3249.2,3248.6,3.2078]